bitfinex-derivatives/quotes_SOLF0:USTF0_20250323
["timestamp","ask_amount","ask_price","bid_price","bid_amount"]
[1742755267741,9.85744338,130.91,130.89,0.05805594]
[1742755270646,2.606e-05,130.91,130.89,9.91547326]
[1742755270946,2.606e-05,130.91,130.9,7.6407]
[1742755291666,2.606e-05,130.91,130.9,17.49811732]
[1742755292664,2.606e-05,130.91,130.9,7.6407]
[1742755296270,2.606e-05,130.91,130.9,17.49811732]
[1742755302474,2.606e-05,130.91,130.9,7.6407]
[1742755303276,2.606e-05,130.91,130.9,17.49811732]
[1742755308675,2.606e-05,130.91,130.9,7.6407]
[1742755316581,2.606e-05,130.91,130.9,17.49811732]
[1742755330088,359.0,130.87,130.65,418.67019064]
[1742755330289,22.93,130.82,130.73,314.00264298]
[1742755330493,7.6513,130.72,130.71,1e-08]
[1742755330789,9.85741732,130.72,130.71,1e-08]
[1742755330993,43.61741732,130.72,130.71,1e-08]
[1742755331292,54.40005527,130.72,130.65,418.67019064]
[1742755331495,9.85741732,130.68,130.66,242.84852394]
[1742755331888,10.78263795,130.67,130.66,242.84852394]
[1742755332387,114.90794826,130.67,130.66,30.56]
[1742755332584,114.90794826,130.67,130.65,0.02422109]
[1742755332782,9.85741732,130.66,130.63,252.06]
[1742755333090,49.25535891,130.66,130.63,252.06]
[1742755333291,15.51535891,130.64,130.63,252.06]
[1742755333496,10.78263795,130.65,130.63,252.06]
[1742755333998,10.83821509,130.65,130.63,252.06]
[1742755334486,12.6966636,130.64,130.58,252.22]
[1742755334682,10.78263795,130.64,130.59,32.711]
[1742755334886,26.29799686,130.64,130.59,32.711]
[1742755335189,14.61071127,130.63,130.59,32.711]
[1742755335394,48.29071127,130.63,130.59,32.711]
[1742755335595,0.05112901,130.62,130.59,32.711]
[1742755335790,14.66184028,130.62,130.59,7.0704772]
[1742755336091,10.83376696,130.62,130.58,252.22]
[1742755336395,10.78263795,130.61,130.58,259.2904772]
[1742755336991,114.90794826,130.61,130.58,205.8726489]
[1742755337294,10.78263795,130.6,130.58,205.8726489]
[1742755337693,10.78263795,130.59,130.58,205.8726489]
[1742755337894,10.78263795,130.59,130.58,198.8021717]
[1742755338193,7.53343795,130.59,130.58,198.8021717]
[1742755338390,4.28423795,130.59,130.58,125.52990836]
[1742755338600,4.28423795,130.59,130.58,133.18940836]
[1742755339091,4.28423795,130.59,130.58,132.18940836]
[1742755340192,4.28423795,130.59,130.58,114.86578509]
[1742755342698,0.05112901,130.62,130.58,114.86578509]
[1742755342996,4.67537254,130.59,130.58,114.86578509]
[1742755343392,4.67537254,130.59,130.58,114.59929201]
[1742755344701,4.67537254,130.59,130.58,121.66976921]
[1742755345396,0.05112901,130.62,130.58,137.18512812]
[1742755345596,359.0,130.65,130.6,15.51535891]
[1742755345796,1.91363975,130.64,130.61,33.2]
[1742755346099,1.91363975,130.63,130.61,33.2]
[1742755346398,3.06180412,130.66,130.63,7.656]
[1742755346602,1.91365328,130.65,130.63,7.656]
[1742755346899,1.91364193,130.64,130.63,7.656]
[1742755347092,1.91364193,130.64,130.63,7.70712901]
[1742755348793,19.39435852,130.67,130.64,7.6557]
[1742755348794,19.39437815,130.67,130.64,7.6557]
[1742755348989,4.97551432,130.66,130.64,7.6557]
[1742755349189,4.97551432,130.65,130.64,7.6557]
[1742755349394,4.97547926,130.65,130.64,7.6557]
[1742755350202,4.97547926,130.65,130.64,14.44530179]
[1742755350999,4.97539687,130.65,130.64,14.44530179]
[1742755352805,4.97543872,130.65,130.64,14.44530179]
[1742755354903,9.92532379,130.66,130.65,7.6552]
[1742755355101,18.7274273,130.66,130.65,7.6552]
[1742755355303,18.72758881,130.66,130.65,7.6552]
[1742755356805,9.92532379,130.66,130.65,7.6552]
[1742755357108,18.72758881,130.66,130.65,7.6552]
[1742755357311,18.72758881,130.66,130.65,6.7853679]
[1742755357505,25.51800773,130.66,130.65,6.7853679]
[1742755358107,22.97159501,130.66,130.65,6.7853679]
[1742755359008,18.72713082,130.66,130.65,6.7853679]
[1742755359201,29.76840836,130.66,130.65,6.7853679]
[1742755361515,19.84308457,130.66,130.65,6.7853679]
[1742755363415,19.84221222,130.66,130.65,6.7853679]
[1742755364010,19.84221222,130.66,130.65,16.71069169]
[1742755364209,1.888e-05,130.66,130.65,16.71069169]
[1742755364406,1.941e-05,130.67,130.66,7.6548]
[1742755364611,1.21677143,130.7,130.66,42.18532379]
[1742755364809,368.92532379,130.71,130.68,9.92532379]
[1742755365014,368.92532379,130.71,130.7,7.6524]
[1742755365210,42.18532379,130.72,130.69,9.92532379]
[1742755365610,9.92532379,130.72,130.69,9.92532379]
[1742755365810,9.92532379,130.72,130.69,9.98130809]
[1742755365811,9.97455999,130.72,130.69,9.98130809]
[1742755366419,9.97455999,130.72,130.71,7.6519]
[1742755367515,0.0492362,130.72,130.71,7.6519]
[1742755367818,0.0492362,130.72,130.71,17.57722379]
[1742755368517,0.0492362,130.72,130.71,7.6519]
[1742755369219,0.0492362,130.72,130.71,17.57722379]
[1742755369823,0.0492362,130.72,130.71,7.6519]
[1742755371622,7.57569757,130.72,130.71,7.6519]
[1742755372222,8.81058418,130.72,130.71,7.6519]
[1742755372417,1.28412281,130.72,130.71,9.92532379]
[1742755373120,7.71730668,130.72,130.71,9.92532379]
[1742755373318,15.02172175,130.72,130.71,17.57722379]
[1742755373525,7.35365127,130.72,130.71,17.57722379]
[1742755374216,7.35365127,130.72,130.71,24.59649944]
[1742755374526,10.41339707,130.72,130.71,20.75296711]
[1742755375019,3.108982,130.72,130.71,20.75296711]
[1742755375221,0.0492362,130.72,130.71,20.75296711]
[1742755375825,7.09593881,130.72,130.71,20.75296711]
[1742755376024,7.09593881,130.72,130.71,10.82764332]
[1742755376226,9.00838695,130.72,130.71,10.82764332]
[1742755376424,9.00838695,130.72,130.71,3.80836767]
[1742755376620,9.00686969,130.72,130.71,13.73369146]
[1742755376826,9.92532379,130.79,130.71,9.92532379]
[1742755377029,17.57252379,130.79,130.75,9.92532379]
[1742755377326,7.6472,130.79,130.76,9.92532379]
[1742755377729,7.6472,130.79,130.76,17.57372379]
[1742755377920,7.69782179,130.79,130.76,17.62491464]
[1742755378121,0.05062179,130.79,130.77,9.92532379]
[1742755378633,0.05062179,130.79,130.77,17.57352379]
[1742755378823,31.75062179,130.79,130.77,17.57352379]
[1742755379431,31.75062179,130.79,130.78,9.92532379]
[1742755380632,31.75062179,130.79,130.76,9.97651464]
[1742755380931,31.65062179,130.79,130.78,7.6478]
[1742755381932,31.65062179,130.79,130.77,7.6482]
[1742755382626,9.92532379,130.78,130.76,0.05119085]
[1742755382835,9.92532379,130.77,130.76,0.05119085]
[1742755385837,9.92532379,130.78,130.76,7.70009085]
[1742755387736,41.57594558,130.79,130.77,7.6483]
[1742755388037,0.05062179,130.79,130.76,0.05119085]
[1742755388233,31.43062179,130.79,130.76,0.05119085]
[1742755388535,41.35594558,130.79,130.77,7.6479]
[1742755388731,31.43062179,130.79,130.76,9.97651464]
[1742755389032,31.43062179,130.79,130.77,7.6483]
[1742755389228,31.43062179,130.79,130.77,9.92532379]
[1742755389632,31.43062179,130.79,130.76,9.97651464]
[1742755389832,41.35594558,130.79,130.77,7.6483]
[1742755390033,41.35594558,130.79,130.76,0.05119085]
[1742755390334,9.92532379,130.78,130.76,0.05119085]
[1742755390638,41.35594558,130.79,130.76,0.05119085]
[1742755391133,41.27594558,130.79,130.76,7.69979085]
[1742755391638,41.27594558,130.79,130.77,7.6483]
[1742755391838,48.92324558,130.79,130.76,0.05119085]
[1742755392239,48.86324558,130.79,130.76,0.05119085]
[1742755392539,48.86324558,130.79,130.76,7.69979085]
[1742755392834,41.21594558,130.79,130.76,7.69979085]
[1742755393542,48.86324558,130.79,130.76,0.05119085]
[1742755393736,1.9118692,130.78,130.76,0.05119085]
[1742755394335,1.9118692,130.78,130.76,7.69989085]
[1742755394739,48.86324558,130.79,130.76,7.69989085]
[1742755394929,1.9118692,130.78,130.76,7.69989085]
[1742755395537,48.86324558,130.79,130.76,7.69989085]
[1742755396141,31.29062179,130.79,130.76,9.97651464]
[1742755396643,0.05062179,130.79,130.78,7.6478]
[1742755400540,0.05062179,130.79,130.77,7.6481]
[1742755400746,9.97594558,130.79,130.77,7.6481]
[1742755400942,9.97594558,130.79,130.77,14.66737565]
[1742755402143,0.05062179,130.79,130.77,14.66737565]
[1742755402344,1.96223191,130.79,130.77,14.66737565]
[1742755402847,11.8875557,130.79,130.77,14.66737565]
[1742755403049,9.97594558,130.79,130.77,14.66737565]
[1742755403549,9.97594558,130.79,130.78,7.6478]
[1742755403752,1.96222055,130.79,130.78,7.6478]
[1742755404150,1.96221752,130.79,130.78,7.6478]
[1742755404648,1.96221752,130.79,130.77,7.648]
[1742755404848,0.05062179,130.79,130.77,7.648]
[1742755405040,0.05062179,130.79,130.77,14.66727565]
[1742755406343,1.91160911,130.78,130.77,14.66727565]
[1742755406847,11.8369329,130.78,130.77,7.01927565]
[1742755408347,11.83713934,130.78,130.77,7.01927565]
[1742755408548,11.83713934,130.78,130.76,7.69999085]
[1742755408749,1.91181555,130.77,130.76,14.7192665]
[1742755409546,1.91181555,130.77,130.76,7.69999085]
[1742755412246,9.97594558,130.79,130.77,7.6481]
[1742755412451,1.91170679,130.78,130.77,7.6481]
[1742755412845,1.91170955,130.78,130.76,7.69989085]
[1742755413047,1.91170955,130.77,130.76,7.69989085]
[1742755416456,1.91170955,130.77,130.76,17.62521464]
[1742755416656,1.91170955,130.77,130.76,14.7191665]
[1742755416856,11.83703334,130.77,130.76,7.0704665]
[1742755417063,11.83703334,130.77,130.76,0.05119085]
[1742755417261,42.19703334,130.77,130.76,0.05119085]
[1742755417857,49.84533334,130.77,130.76,0.05119085]
[1742755418251,42.19703334,130.77,130.76,0.05119085]
[1742755419049,49.84533334,130.77,130.76,0.05119085]
[1742755420460,49.84578436,130.77,130.76,0.05119085]
[1742755422660,49.84578503,130.77,130.76,0.05119085]
[1742755425159,49.84567664,130.77,130.76,0.05119085]
[1742755425961,42.19737664,130.77,130.76,0.05119085]
[1742755426663,32.27205285,130.77,130.76,0.05119085]
[1742755428664,42.19737664,130.77,130.76,0.05119085]
[1742755428869,11.83737664,130.77,130.76,0.05119085]
[1742755430466,9.92532379,130.77,130.76,0.05119085]
[1742755430667,11.83721202,130.77,130.76,0.05119085]
[1742755431774,19.48551202,130.77,130.76,0.05119085]
[1742755433077,19.4856589,130.77,130.76,0.05119085]
[1742755437780,11.8373589,130.77,130.76,0.05119085]
[1742755438885,11.83732788,130.77,130.76,0.05119085]
[1742755439087,1.91200409,130.77,130.76,0.05119085]
[1742755440284,1.91203102,130.77,130.76,0.05119085]
[1742755440787,11.83735481,130.77,130.76,0.05119085]
[1742755441887,19.48565481,130.77,130.76,0.05119085]
[1742755443578,17.57362379,130.77,130.76,0.05119085]
[1742755443783,19.48567398,130.77,130.76,0.05119085]
[1742755444890,7.6496,130.75,130.72,9.92532379]
[1742755445086,1.91205019,130.74,130.72,16.94459944]
[1742755445281,1.91205019,130.73,130.72,24.59539944]
[1742755453399,1.91205019,130.73,130.72,7.01927565]
[1742755453895,1.91205019,130.73,130.71,0.04950916]
[1742755453896,11.83737398,130.73,130.71,0.04950916]
[1742755454111,41.17737398,130.72,130.71,0.04950916]
[1742755454422,41.17808061,130.72,130.71,0.04950916]
[1742755454601,48.82938061,130.72,130.71,0.04950916]
[1742755455695,41.17808061,130.72,130.71,0.04950916]
[1742755455996,31.25265401,130.72,130.71,0.04950916]
[1742755457519,31.25270361,130.72,130.71,0.04950916]
[1742755458215,31.25270361,130.72,130.71,7.70140916]
[1742755458410,31.25270361,130.72,130.71,0.04950916]
[1742755460099,31.25261075,130.72,130.71,0.04950916]
[1742755460299,31.25261075,130.72,130.71,7.70140916]
[1742755461197,31.25261075,130.72,130.71,0.04950916]
[1742755461600,31.25261075,130.72,130.71,7.70140916]
[1742755461903,1.91261075,130.72,130.71,7.70140916]
[1742755462201,1.91259518,130.72,130.71,7.70140916]
[1742755462396,1.91259518,130.72,130.71,14.72068481]
[1742755463200,1.91259518,130.72,130.71,7.70140916]
[1742755465105,1.91259518,130.72,130.71,17.62673295]
[1742755465804,39.14025579,130.74,130.71,17.62673295]
[1742755466107,1.91255921,130.73,130.71,17.62673295]
[1742755466306,1.91255921,130.72,130.71,17.62673295]
[1742755466508,1.91255921,130.72,130.71,7.70140916]
[1742755469510,1.91255921,130.72,130.71,14.72068481]
[1742755470311,0.054932,130.74,130.73,7.6507]
[1742755470513,0.054932,130.74,130.73,17.57602379]
[1742755471013,359.0,130.77,130.73,9.92532379]
[1742755471209,359.0,130.77,130.74,9.92532379]
[1742755471403,359.0,130.77,130.72,28.98]
[1742755471710,359.0,130.77,130.73,9.92532379]
[1742755471912,0.0564252,130.76,130.74,7.6501]
[1742755473126,0.0564252,130.76,130.75,7.6495]
[1742755474613,0.0564252,130.76,130.74,7.6498]
[1742755475006,9.92532379,130.75,130.74,7.01927565]
[1742755478414,17.63064899,130.76,130.74,7.01927565]
[1742755482125,9.98174899,130.76,130.74,7.01927565]
[1742755482318,1.91216259,130.75,130.74,7.01927565]
[1742755482626,9.98174899,130.76,130.74,7.01927565]
[1742755482821,1.91217193,130.75,130.74,7.01927565]
[1742755483929,1.91217193,130.75,130.74,14.66937565]
[1742755484224,1.91216189,130.75,130.73,9.98349934]
[1742755484424,1.91216189,130.74,130.73,17.63419934]
[1742755484620,0.0564252,130.76,130.73,9.98349934]
[1742755485012,0.0564252,130.76,130.75,7.6495]
[1742755488529,0.0564252,130.76,130.75,17.57482379]
[1742755491429,0.0564252,130.76,130.75,24.59409944]
[1742755494429,359.0,130.81,130.75,9.92532379]
[1742755494727,387.58,130.81,130.78,9.92532379]
[1742755494924,359.0,130.81,130.79,9.92532379]
[1742755495126,28.58,130.82,130.79,9.92532379]
[1742755495631,28.62920061,130.82,130.81,7.646]
[1742755497332,0.04920061,130.82,130.81,7.646]
[1742755499738,0.04920061,130.82,130.8,17.57162379]
[1742755501338,0.04920061,130.82,130.81,7.646]
[1742755501936,0.04920061,130.82,130.8,17.57162379]
[1742755502536,0.04920061,130.82,130.8,9.92532379]
[1742755503744,0.04920061,130.82,130.8,16.94459944]
[1742755504139,7.69470061,130.82,130.8,16.94459944]
[1742755504945,7.646,130.81,130.8,7.01927565]
[1742755506943,7.69490061,130.82,130.8,7.01927565]
[1742755507244,7.69490061,130.82,130.8,16.94459944]
[1742755508345,7.69490061,130.82,130.8,24.59109944]
[1742755509643,7.69490061,130.82,130.8,16.94459944]
[1742755510142,7.69490061,130.82,130.8,7.01927565]
[1742755512044,7.646,130.81,130.8,7.01927565]
[1742755513245,7.646,130.81,130.8,16.94459944]
[1742755515847,7.6466,130.8,130.79,0.05816206]
[1742755516249,17.57192379,130.8,130.79,0.05816206]
[1742755517244,7.6489,130.76,130.75,252.38]
[1742755517444,7.6489,130.76,130.75,7.01927565]
[1742755517647,9.92532379,130.76,130.73,9.92532379]
[1742755517847,7.6496,130.75,130.73,16.94459944]
[1742755518348,7.69865632,130.75,130.73,17.001323]
[1742755518846,0.04905632,130.75,130.73,17.001323]
[1742755520151,7.69865632,130.75,130.73,7.07599921]
[1742755522154,0.04905632,130.75,130.73,14.72659921]
[1742755522949,0.04905632,130.75,130.73,17.001323]
[1742755523155,0.04905632,130.75,130.74,7.6501]
[1742755523455,0.04905632,130.75,130.74,14.66937565]
[1742755524746,0.04905632,130.75,130.74,17.57542379]
[1742755525959,7.6475,130.79,130.77,7.6483]
[1742755526159,28.2,130.79,130.77,7.6483]
[1742755527259,28.25446404,130.79,130.77,7.70206087]
[1742755527658,0.05446404,130.79,130.77,7.70206087]
[1742755528962,7.70166404,130.79,130.77,0.05376087]
[1742755529261,9.92532379,130.78,130.77,0.05376087]
[1742755529465,45.71312379,130.78,130.77,0.05376087]
[1742755530965,28.14,130.78,130.77,0.05376087]
[1742755534668,0.05446404,130.79,130.77,9.97908466]
[1742755534866,0.05446404,130.79,130.77,0.05376087]
[1742755535368,0.05446404,130.79,130.78,7.6478]
[1742755538168,0.05446404,130.79,130.77,9.97908466]
[1742755538368,0.05446404,130.79,130.77,0.05376087]
[1742755538564,0.05446404,130.79,130.77,7.07303652]
[1742755539470,0.05446404,130.79,130.78,7.6478]
[1742755539670,0.05446404,130.79,130.78,14.66707565]
[1742755546269,0.05446404,130.79,130.78,24.59239944]
[1742755546469,0.05446404,130.79,130.78,17.57312379]
[1742755547772,0.05446404,130.79,130.78,7.6478]
[1742755550270,0.05446404,130.79,130.78,14.66707565]
[1742755551776,0.05446404,130.79,130.78,24.59239944]
[1742755552481,6.404e-05,130.79,130.78,17.57312379]
[1742755552777,9.92532379,130.85,130.83,7.6447]
[1742755552980,9.92532379,130.85,130.81,37.80532379]
[1742755553279,9.92532379,130.85,130.83,7.6445]
[1742755553673,9.98214397,130.85,130.83,7.69926056]
[1742755554485,0.05682018,130.85,130.83,7.69926056]
[1742755554676,0.05682018,130.85,130.84,7.6442]
[1742755555778,0.05682018,130.85,130.84,17.56952379]
[1742755556279,0.05682018,130.85,130.84,7.6442]
[1742755557785,0.05682018,130.85,130.83,17.62468435]
[1742755557980,0.05682018,130.85,130.83,7.69936056]
[1742755559588,0.05682018,130.85,130.83,17.62468435]
[1742755562389,0.05682018,130.85,130.83,24.64396]
[1742755563287,0.05682018,130.85,130.84,7.6442]
[1742755563678,0.05682018,130.85,130.84,17.56952379]
[1742755563884,0.05682018,130.85,130.84,45.32952379]
[1742755564889,359.0,130.9,130.84,37.68532379]
[1742755565086,9.92532379,130.91,130.87,9.92532379]
[1742755565390,9.92532379,130.91,130.88,7.6415]
[1742755565888,9.98219298,130.91,130.88,7.70016372]
[1742755566191,17.62249298,130.91,130.88,0.05866372]
[1742755566389,9.92532379,130.9,130.88,0.05866372]
[1742755567591,17.56652379,130.9,130.88,0.05866372]
[1742755567891,9.92532379,130.9,130.88,0.05866372]
[1742755568090,9.98219298,130.91,130.88,7.70016372]
[1742755569092,9.98219298,130.91,130.89,7.6412]
[1742755569289,9.98219298,130.91,130.88,0.05866372]
[1742755569690,0.05686919,130.91,130.88,9.98398751]
[1742755570990,0.05686919,130.91,130.9,9.92532379]
[1742755571593,359.0,130.95,130.9,37.64532379]
[1742755571796,359.0,130.95,130.92,9.92532379]
[1742755572092,17.56112379,130.99,130.95,7.6377]
[1742755572291,9.92532379,130.99,130.95,9.92532379]
[1742755572684,17.56112379,130.99,130.95,17.56272379]
[1742755572890,0.05356461,130.98,130.96,0.05430999]
[1742755573090,9.9788884,130.98,130.96,0.05430999]
[1742755573391,17.6153884,130.98,130.96,0.05430999]
[1742755573796,7.69006461,130.98,130.96,0.05430999]
[1742755573992,0.05356461,130.98,130.96,0.05430999]
[1742755574992,7.68996461,130.98,130.96,7.07358564]
[1742755575494,9.9788884,130.98,130.96,0.05430999]
[1742755575695,7.6367,130.97,130.96,0.05430999]
[1742755577894,7.6367,130.97,130.96,7.07358564]
[1742755578394,17.56202379,130.97,130.96,0.05430999]
[1742755579801,45.30202379,130.97,130.96,9.99e-06]
[1742755580202,7.6398,130.92,130.89,15.98402379]
[1742755580402,7.6398,130.92,130.89,23.00329944]
[1742755580891,17.56462379,130.93,130.89,23.00329944]
[1742755581296,0.0562393,130.92,130.9,0.0536851]
[1742755581498,0.0562393,130.92,130.9,9.97900889]
[1742755581799,0.0562393,130.92,130.9,16.99828454]
[1742755582201,7.6375,130.96,130.91,37.64532379]
[1742755582401,37.66532379,130.98,130.94,9.92532379]
[1742755583404,0.0500727,130.97,130.95,0.0586691]
[1742755584401,0.0500727,130.97,130.95,9.98399289]
[1742755584810,0.0500727,130.97,130.96,9.92532379]
[1742755587315,363.1391,131.06,130.96,9.92532379]
[1742755587508,363.1391,131.06,131.0,9.92532379]
[1742755587509,388.7413,131.05,131.0,9.92532379]
[1742755587714,359.0,131.05,130.99,9.92532379]
[1742755587913,17.55882379,131.03,130.99,9.92532379]
[1742755588406,7.6335,131.03,131.0,9.92532379]
[1742755588607,9.978061,131.02,131.0,0.05021165]
[1742755589008,0.05273721,131.02,131.0,0.05021165]
[1742755589907,0.05273721,131.02,131.0,7.68481165]
[1742755590311,0.05273721,131.02,131.0,27.77021165]
[1742755590608,366.6322,131.05,131.01,7.6343]
[1742755590609,359.0,131.05,131.01,7.6343]
[1742755590813,27.76,131.08,131.02,15.42434375]
[1742755591007,27.76,131.08,131.03,27.76]
[1742755591407,27.76,131.09,131.03,34.77927565]
[1742755591615,0.05631479,131.07,131.04,0.05110637]
[1742755591814,0.05631479,131.07,131.04,7.07038202]
[1742755592012,7.6315,131.06,131.04,7.07038202]
[1742755592614,7.632,131.05,131.04,7.07038202]
[1742755592816,0.05631479,131.07,131.04,7.07038202]
[1742755593922,7.6317,131.06,131.04,7.07038202]
[1742755595224,7.632,131.05,131.04,7.07038202]
[1742755596418,7.632,131.05,131.04,0.05110637]
[1742755597226,7.6349,131.0,130.98,19.50784375]
[1742755597418,7.6349,131.0,130.98,22.4436194]
[1742755598430,7.68524116,131.0,130.98,22.49626527]
[1742755599629,7.68524116,131.0,130.98,7.07192152]
[1742755602020,7.6355,130.99,130.98,7.07192152]
[1742755602219,7.6355,130.99,130.98,0.05264587]
[1742755603823,35.38554116,131.0,130.98,0.05264587]
[1742755604320,0.05034116,131.0,130.98,0.05264587]
[1742755605121,0.05034116,131.0,130.98,7.68874587]
[1742755608931,0.05034116,131.0,130.99,9.87028817]
[1742755609327,0.05034116,131.0,130.99,17.50578817]
[1742755611131,45.14258817,131.05,131.01,7.6341]
[1742755611335,45.14258817,131.05,131.01,17.50438817]
[1742755611837,35.2723,131.05,131.02,17.50388817]
[1742755612035,7.6323,131.05,131.02,9.87028817]
[1742755612343,7.6323,131.05,131.02,7.07729725]
[1742755612344,37.56029625,131.05,131.02,7.07729725]
[1742755612744,7.6332,131.03,131.02,7.07729725]
[1742755612942,17.50348817,131.03,131.02,0.0580216]
[1742755613245,7.6332,131.03,131.02,0.0580216]
[1742755614841,7.6328,131.04,131.02,0.0580216]
[1742755615148,0.05000808,131.05,131.03,9.87028817]
[1742755615338,0.05000808,131.05,131.04,9.87028817]
[1742755616048,0.05000808,131.05,131.03,9.87028817]
[1742755616248,7.68210808,131.05,131.03,9.87028817]
[1742755616444,0.05000808,131.05,131.03,9.87028817]
[1742755617545,7.68210808,131.05,131.03,9.87028817]
[1742755617750,7.68210808,131.05,131.02,9.92830977]
[1742755617946,9.92029625,131.05,131.02,16.94758542]
[1742755618546,7.6329,131.04,131.02,16.94758542]
[1742755618950,9.92029625,131.05,131.02,16.94758542]
[1742755618951,0.05000808,131.05,131.02,16.94758542]
[1742755619150,0.05000808,131.05,131.03,9.87028817]
[1742755619646,0.05000808,131.05,131.02,7.07729725]
[1742755619647,0.05000808,131.05,131.04,17.50288817]
[1742755625446,37.43028817,131.1,131.04,17.50288817]
[1742755625654,7.63,131.09,131.06,9.87028817]
[1742755626250,17.50028817,131.09,131.06,9.87028817]
[1742755626550,7.6303,131.08,131.05,17.50198817]
[1742755626750,7.6303,131.08,131.06,0.05063884]
[1742755627648,9.9252181,131.09,131.06,0.05063884]
[1742755627649,17.5551181,131.09,131.06,0.05063884]
[1742755627851,9.9252181,131.09,131.06,0.05063884]
[1742755628148,17.5552181,131.09,131.06,0.05063884]
[1742755630857,17.5552181,131.09,131.06,7.68203884]
[1742755631656,17.5552181,131.09,131.06,17.55232701]
[1742755631958,17.5552181,131.09,131.06,24.57160266]
[1742755638458,9.87028817,131.07,131.06,7.06991449]
[1742755638660,9.87028817,131.07,131.06,0.05063884]
[1742755638856,37.29028817,131.07,131.06,0.05063884]
[1742755639056,44.92108817,131.07,131.06,0.05063884]
[1742755639858,37.29028817,131.07,131.02,251.88]
[1742755640054,37.29028817,131.07,131.03,9.87028817]
[1742755640963,0.05874143,131.06,131.04,0.05778213]
[1742755641175,0.05874143,131.06,131.04,7.69038213]
[1742755641662,27.49874143,131.06,131.04,7.69038213]
[1742755642466,0.05874143,131.06,131.04,9.9280703]
[1742755643161,0.05874143,131.06,131.04,17.5603703]
[1742755643360,0.05874143,131.06,131.04,9.9280703]
[1742755644162,0.05874143,131.06,131.05,9.87028817]
[1742755644566,0.05874143,131.06,131.05,17.50228817]
[1742755644770,0.05874143,131.06,131.05,9.87028817]
[1742755648570,0.05874143,131.06,131.05,17.50228817]
[1742755649873,0.05874143,131.06,131.05,24.52156382]
[1742755653073,0.05874143,131.06,131.05,16.88956382]
[1742755653580,0.05874143,131.06,131.05,24.52156382]
[1742755655477,0.05874143,131.06,131.05,16.88956382]
[1742755656471,0.05874143,131.06,131.04,9.9280703]
[1742755656676,0.05874143,131.06,131.04,16.94734595]
[1742755657681,0.05874143,131.06,131.04,24.57974595]
[1742755659186,0.05874143,131.06,131.04,16.94734595]
[1742755660077,0.05874143,131.06,131.04,24.57984595]
[1742755660274,0.05874143,131.06,131.04,9.9280703]
[1742755660485,0.05874143,131.06,131.05,9.87028817]
[1742755660686,0.05874143,131.06,131.05,17.50228817]
[1742755664188,0.05874143,131.06,131.04,9.9280703]
[1742755664389,0.05874143,131.06,131.04,16.94734595]
[1742755666385,0.05874143,131.06,131.04,24.57994595]
[1742755669696,0.05874143,131.06,131.05,7.632]
[1742755674895,0.05874143,131.06,131.04,17.5603703]
[1742755677202,0.05874143,131.06,131.05,7.632]
[1742755678792,0.05874143,131.06,131.05,14.65127565]
[1742755679904,0.05874143,131.06,131.05,7.632]
[1742755680103,0.05874143,131.06,131.05,17.50228817]
[1742755681299,9.87028817,131.12,131.05,9.87028817]
[1742755681505,37.09028817,131.12,131.08,9.87028817]
[1742755681998,37.09028817,131.12,131.09,7.6293]
[1742755682199,9.87028817,131.11,131.07,9.87028817]
[1742755682503,9.87028817,131.11,131.09,0.05402144]
[1742755683500,17.49888817,131.11,131.09,0.05402144]
[1742755683700,9.87028817,131.11,131.09,0.05402144]
[1742755683905,9.87028817,131.1,131.09,0.05402144]
[1742755688012,9.87028817,131.11,131.09,7.68372144]
[1742755688507,9.87028817,131.11,131.09,7.68332144]
[1742755689414,37.14378846,131.12,131.1,7.6288]
[1742755691109,37.14378846,131.12,131.09,7.68342144]
[1742755691310,37.14378846,131.12,131.09,0.05402144]
[1742755691916,37.14378846,131.12,131.1,7.629]
[1742755692518,37.14378846,131.12,131.09,7.68342144]
[1742755692720,37.14378846,131.12,131.09,0.05402144]
[1742755693318,37.14378846,131.12,131.1,7.629]
[1742755694319,37.14378846,131.12,131.1,7.6291]
[1742755695320,37.06378846,131.12,131.1,7.6291]
[1742755695619,9.87028817,131.11,131.09,0.05402144]
[1742755695819,9.87028817,131.1,131.09,0.05402144]
[1742755696020,9.87028817,131.11,131.09,0.05402144]
[1742755699022,17.49878817,131.11,131.09,0.05402144]
[1742755699623,7.6291,131.1,131.09,0.05402144]
[1742755699822,17.49938817,131.1,131.09,0.05402144]
[1742755704324,9.87028817,131.1,131.09,0.05402144]
[1742755706223,37.06378846,131.12,131.09,0.05402144]
[1742755706427,9.92378846,131.12,131.09,0.05402144]
[1742755706727,37.06378846,131.12,131.09,7.68332144]
[1742755707526,9.92378846,131.12,131.09,7.68332144]
[1742755707727,37.06378846,131.12,131.1,7.6291]
[1742755707931,27.19350029,131.12,131.09,9.92430961]
[1742755708518,0.05350029,131.12,131.1,17.49938817]
[1742755708717,0.05350029,131.12,131.1,7.6291]
[1742755712328,0.05350029,131.12,131.11,7.6285]